[Event "41st Arco Open 2019"]
[Site "Arco"]
[Date "2019.10.06"]
[Round "3"]
[White "Knors, Rudi"]
[Black "Welling, Gerard"]
[Result "0-1"]
[ECO "B06"]
[WhiteElo "2075"]
[BlackElo "2302"]
[Annotator "ChessBase"]
[PlyCount "101"]
[EventDate "2019.10.04"]
[EventType "swiss"]
[EventCountry "ITA"]
[SourceTitle "playchess.com"]
[Source "ChessBase"]
[SourceQuality "1"]
[TimeControl "40/5400+30:1800+30"]

1. d4 {[%emt 0:00:30]} g6 {[%emt 0:00:30]} 2. g3 {[%emt 0:00:30]} Bg7 {[%emt 0:00:30]} 3. Bg2 {[%emt 0:00:30]} d6 {[%emt 0:00:30]} 4. e4 {[%emt 0:00:30]} Nc6 5. Ne2 {[%emt 0:00:30]} e5 {[%emt 0:01:00]} 6. Be3 {[%emt 0:04:30]} Bg4 {[%emt 0:00:30]} 7. f3 {[%emt 0:00:30]} Bd7 {[%emt 0:03:30]} 8. Nbc3 {[%emt 0:02:30]} Qc8 {[%emt 0:03:30]} 9. Qd2 {[%emt 0:01:30]} Nf6 {[%emt 0:03:30]} 10. Bh6 {[%emt 0:08:30]} O-O {[%emt 0:00:30]} 11. Bxg7 {[%emt 0:00:30]} Kxg7 {[%emt 0:08:30]} 12. O-O-O {[%emt 0:02:30]} Bh3 {[%emt 0:06:30]} 13. Bxh3 {[%emt 0:02:30]} Qxh3 {[%emt 0:00:30]} 14. d5 {[%emt 0:01:30]} Ne7 {[%emt 0:00:00]} 15. f4 {[%emt 0:04:30]} a6 {[%emt 0:02:00]} 16. fxe5 {[%emt 0:04:30]} dxe5 {[%emt 0:00:00]} 17. Rdf1 {[%emt 0:00:30]} Ne8 {[%emt 0:00:00]} 18. Nd1 {[%emt 0:05:30]} Qh6 {[%emt 0:23:30]} 19. g4 {[%emt 0:13:30]} Qxd2+ {[%emt 0:00:00]} 20. Kxd2 {[%emt 0:00:00]} Nd6 {[%emt 0:00:00]} 21. Ng3 {[%emt 0:02:00]} c6 {[%emt 0:00:00]} 22. dxc6 Nxc6 {[%emt 0:00:00]} 23. Ne3 {[%emt 0:04:00]} Rfd8 24. Kc1 {[%emt 0:02:30]} Nd4 {[%emt 0:00:00]} 25. Rd1 {[%emt 0:01:30]} Rac8 26. Kb1 {[%emt 0:00:30]} Nc4 {[%emt 0:00:00]} 27. Nxc4 {[%emt 0:00:00]} Rxc4 {[%emt 0:00:00]} 28. c3 {[%emt 0:03:00]} Ne6 {[%emt 0:00:00]} 29. Rxd8 {[%emt 0:00:30]} Nxd8 {[%emt 0:00:00]} 30. Rd1 {[%emt 0:02:30]} Ne6 {[%emt 0:00:00]} 31. Kc2 {[%emt 0:03:30]} Rc7 {[%emt 0:00:00]} 32. Ne2 {[%emt 0:10:30]} Ng5 {[%emt 0:00:00]} 33. Ng3 {[%emt 0:01:25]} Nh3 {[%emt 0:00:00]} 34. Nh1 {[%emt 0:00:00]} Kf6 {[%emt 0:00:00]} 35. Rd3 {[%emt 0:11:32]} Nf4 {[%emt 0:00:00]} 36. Re3 {[%emt 0:00:51]} Kg5 {[%emt 0:00:00]} 37. Nf2 {[%emt 0:01:11]} Rd7 {[%emt 0:04:30]} 38. Rg3 {[%emt 0:01:47]} Rd6 {[%emt 0:05:30]} 39. Re3 {[%emt 0:00:00]} Rf6 {[%emt 0:02:30]} 40. Rf3 {[%emt 0:06:30]} Nd5 {[%emt 0:00:00]} 41. Nh3+ {[%emt 0:03:14]} Kh4 {[%emt 0:06:00]} 42. Rg3 {[%emt 0:00:30]} Nc7 43. Kd3 {[%emt 0:07:30]} Ne6 {[%emt 0:12:00]} 44. Ke3 {[%emt 0:00:00]} Rf4 {[%emt 0:00:00]} 45. Nf2 {[%emt 0:01:00]} Ng5 {[%emt 0:01:00]} 46. Rg2 {[%emt 0:01:30]} b5 {[%emt 0:00:00]} 47. b3 {[%emt 0:00:00]} Rf3+ {[%emt 0:00:00]} 48. Kd2 {[%emt 0:01:00]} Rxf2+ {[%emt 0:00:00]} 49. Rxf2 {[%emt 0:00:00]} Nxe4+ 50. Ke3 {[%emt 0:00:00]} Nxf2 {[%emt 0:00:00]} 51. Kxf2 {[%emt 0:00:30]} 0-1

[Event "41st Arco Open 2019"]
[Site "Arco"]
[Date "2019.10.06"]
[Round "3"]
[White "Voelker, Sebastian"]
[Black "Kuhn, Tobias"]
[Result "1/2-1/2"]
[ECO "B40"]
[WhiteElo "2074"]
[BlackElo "2234"]
[Annotator "ChessBase"]
[PlyCount "33"]
[EventDate "2019.10.04"]
[EventType "swiss"]
[EventCountry "ITA"]
[SourceTitle "playchess.com"]
[Source "ChessBase"]
[SourceQuality "1"]
[TimeControl "40/5400+30:1800+30"]

1. e4 {[%emt 0:00:30]} c5 {[%emt 0:00:30]} 2. Nf3 {[%emt 0:00:00]} e6 {[%emt 0:00:30]} 3. d4 {[%emt 0:01:00]} cxd4 {[%emt 0:00:00]} 4. Nxd4 {[%emt 0:00:00]} Nc6 {[%emt 0:00:00]} 5. Nxc6 {[%emt 0:05:00]} bxc6 {[%emt 0:01:30]} 6. Bd3 {[%emt 0:01:30]} Nf6 {[%emt 0:05:30]} 7. O-O {[%emt 0:00:30]} d5 {[%emt 0:00:30]} 8. Nd2 Be7 {[%emt 0:11:30]} 9. Kh1 {[%emt 0:22:00]} Qb6 {[%emt 0:07:30]} 10. e5 {[%emt 0:17:30]} Nd7 {[%emt 0:00:30]} 11. Qg4 {[%emt 0:01:30]} g6 {[%emt 0:21:30]} 12. f4 {[%emt 0:00:30]} Nc5 {[%emt 0:00:00]} 13. Be2 {[%emt 0:02:30]} Ba6 {[%emt 0:00:00]} 14. c4 {[%emt 0:02:30]} h5 {[%emt 0:00:00]} 15. Qf3 {[%emt 0:00:00]} Rd8 {[%emt 0:00:00]} 16. Rb1 {[%emt 0:10:00]} Nd7 {[%emt 0:00:00]} 17. b4 {[%emt 0:04:30]} 1/2-1/2

[Event "41st Arco Open 2019"]
[Site "Arco"]
[Date "2019.10.06"]
[Round "3"]
[White "Beulertz, Stefan"]
[Black "Felgendreher, Heiko"]
[Result "1/2-1/2"]
[ECO "B90"]
[WhiteElo "2035"]
[BlackElo "2196"]
[Annotator "ChessBase"]
[PlyCount "83"]
[EventDate "2019.10.04"]
[EventType "swiss"]
[EventCountry "ITA"]
[SourceTitle "playchess.com"]
[Source "ChessBase"]
[SourceQuality "1"]
[TimeControl "40/5400+30:1800+30"]

1. e4 {[%emt 0:00:30]} c5 {[%emt 0:00:30]} 2. Nf3 {[%emt 0:00:30]} d6 {[%emt 0:00:00]} 3. d4 {[%emt 0:00:00]} cxd4 {[%emt 0:00:00]} 4. Nxd4 {[%emt 0:00:00]} Nf6 {[%emt 0:00:00]} 5. Nc3 {[%emt 0:00:30]} a6 {[%emt 0:00:00]} 6. Rg1 e5 {[%emt 0:00:30]} 7. Nb3 {[%emt 0:01:00]} Be6 {[%emt 0:14:30]} 8. g4 {[%emt 0:13:30]} d5 {[%emt 0:00:30]} 9. exd5 {[%emt 0:00:00]} Nxd5 {[%emt 0:00:00]} 10. Nxd5 {[%emt 0:00:00]} Qxd5 {[%emt 0:00:00]} 11. Qxd5 {[%emt 0:00:00]} Bxd5 12. Be3 {[%emt 0:00:00]} Nc6 {[%emt 0:07:00]} 13. O-O-O {[%emt 0:21:30]} Nb4 {[%emt 0:14:30]} 14. a3 {[%emt 0:00:00]} Rc8 {[%emt 0:01:30]} 15. Na1 {[%emt 0:04:00]} Bf3 {[%emt 0:08:30]} 16. axb4 {[%emt 0:02:30]} Bxd1 {[%emt 0:00:00]} 17. Kxd1 {[%emt 0:00:30]} Bxb4 {[%emt 0:01:00]} 18. Bg2 {[%emt 0:02:30]} Rc7 {[%emt 0:00:30]} 19. c3 {[%emt 0:02:30]} Be7 {[%emt 0:12:30]} 20. Bb6 {[%emt 0:12:30]} Rd7+ {[%emt 0:00:30]} 21. Ke2 {[%emt 0:00:00]} h5 {[%emt 0:01:30]} 22. h3 {[%emt 0:00:00]} hxg4 {[%emt 0:03:30]} 23. hxg4 {[%emt 0:00:00]} Rh4 {[%emt 0:00:00]} 24. Bf3 {[%emt 0:02:00]} Bg5 {[%emt 0:15:42]} 25. Nb3 {[%emt 0:00:30]} Rh6 {[%emt 0:00:30]} 26. Be3 {[%emt 0:12:30]} Bxe3 {[%emt 0:00:28]} 27. Kxe3 {[%emt 0:00:00]} b6 {[%emt 0:01:04]} 28. Ra1 {[%emt 0:06:00]} a5 {[%emt 0:00:47]} 29. Be2 {[%emt 0:03:01]} Ke7 {[%emt 0:00:52]} 30. Nd2 {[%emt 0:05:40]} Rh3+ {[%emt 0:05:18]} 31. f3 {[%emt 0:00:00]} Kd6 {[%emt 0:00:41]} 32. Ne4+ {[%emt 0:01:11]} Kc7 {[%emt 0:00:00]} 33. b4 {[%emt 0:00:00]} axb4 {[%emt 0:00:07]} 34. Ra7+ {[%emt 0:06:03]} Kd8 {[%emt 0:05:51]} 35. Rxd7+ {[%emt 0:00:00]} Kxd7 {[%emt 0:00:00]} 36. cxb4 Rh1 {[%emt 0:00:00]} 37. g5 {[%emt 0:02:28]} Rb1 {[%emt 0:03:38]} 38. b5 {[%emt 0:01:05]} Rb3+ {[%emt 0:00:00]} 39. Kf2 {[%emt 0:00:00]} Rb2 {[%emt 0:00:00]} 40. Ke3 {[%emt 0:01:20]} Rb3+ {[%emt 0:00:00]} 41. Kf2 {[%emt 0:31:11]} Rb2 {[%emt 0:27:36]} 42. Ke3 {[%emt 0:00:30]} 1/2-1/2

[Event "41st Arco Open 2019"]
[Site "Arco"]
[Date "2019.10.10"]
[Round "7"]
[White "Halkias, Stelios"]
[Black "Horvath, Csaba"]
[Result "1/2-1/2"]
[ECO "D17"]
[WhiteElo "2530"]
[BlackElo "2503"]
[Annotator "ChessBase"]
[PlyCount "40"]
[EventDate "2019.10.04"]
[EventType "swiss"]
[EventCountry "ITA"]
[SourceTitle "playchess.com"]
[Source "ChessBase"]
[SourceQuality "1"]
[TimeControl "40/5400+30:1800+30"]

1. Nf3 {[%emt 0:01:30]} d5 {[%emt 0:01:30]} 2. d4 {[%emt 0:00:30]} Nf6 {[%emt 0:00:00]} 3. c4 {[%emt 0:00:00]} c6 {[%emt 0:01:00]} 4. Nc3 {[%emt 0:01:00]} dxc4 5. a4 {[%emt 0:00:30]} Bf5 {[%emt 0:00:00]} 6. Ne5 {[%emt 0:00:30]} Nbd7 {[%emt 0:00:30]} 7. Nxc4 {[%emt 0:00:30]} Qc7 {[%emt 0:00:30]} 8. g3 {[%emt 0:00:00]} e5 {[%emt 0:00:30]} 9. dxe5 {[%emt 0:12:00]} Nxe5 {[%emt 0:00:00]} 10. Bf4 {[%emt 0:00:30]} Nfd7 {[%emt 0:00:00]} 11. Bg2 {[%emt 0:00:30]} f6 12. O-O {[%emt 0:03:30]} Be6 {[%emt 0:03:00]} 13. Nxe5 {[%emt 0:04:30]} Nxe5 {[%emt 0:00:00]} 14. Qc2 {[%emt 0:01:30]} Qa5 {[%emt 0:14:00]} 15. Be4 {[%emt 0:11:30]} Be7 {[%emt 0:17:30]} 16. Na2 {[%emt 0:28:30]} Ng6 {[%emt 0:11:30]} 17. Bd2 {[%emt 0:10:30]} Qh5 {[%emt 0:01:30]} 18. Bf3 {[%emt 0:08:19]} Qh3 {[%emt 0:34:15]} 19. Bg2 {[%emt 0:00:26]} Qh5 {[%emt 0:00:00]} 20. Bf3 {[%emt 0:00:00]} Qh3 {[%emt 0:01:00]} 1/2-1/2

[Event "41st Arco Open 2019"]
[Site "Arco"]
[Date "2019.10.10"]
[Round "7"]
[White "Horvath, Jozsef"]
[Black "Shehzad, Shazil"]
[Result "1/2-1/2"]
[ECO "E14"]
[WhiteElo "2450"]
[BlackElo "2140"]
[Annotator "ChessBase"]
[PlyCount "47"]
[EventDate "2019.10.04"]
[EventType "swiss"]
[EventCountry "ITA"]
[SourceTitle "playchess.com"]
[Source "ChessBase"]
[SourceQuality "1"]
[TimeControl "40/5400+30:1800+30"]

1. Nf3 {[%emt 0:02:30]} d5 {[%emt 0:00:30]} 2. e3 {[%emt 0:00:30]} Nf6 {[%emt 0:02:30]} 3. c4 {[%emt 0:00:30]} e6 {[%emt 0:00:00]} 4. b3 {[%emt 0:01:30]} Be7 5. Bb2 {[%emt 0:00:30]} O-O {[%emt 0:02:30]} 6. d4 {[%emt 0:01:30]} b6 {[%emt 0:00:30]} 7. Nc3 {[%emt 0:01:30]} Bb7 {[%emt 0:04:30]} 8. Bd3 {[%emt 0:05:30]} Nbd7 {[%emt 0:03:30]} 9. O-O {[%emt 0:00:00]} a6 {[%emt 0:02:30]} 10. Rc1 {[%emt 0:00:00]} dxc4 {[%emt 0:02:30]} 11. bxc4 {[%emt 0:03:30]} c5 12. a4 {[%emt 0:24:30]} cxd4 {[%emt 0:04:00]} 13. exd4 {[%emt 0:00:30]} Qc7 14. Re1 {[%emt 0:04:30]} Rad8 {[%emt 0:10:00]} 15. Nd5 {[%emt 0:00:00]} exd5 {[%emt 0:05:30]} 16. Rxe7 {[%emt 0:05:00]} Qd6 {[%emt 0:01:30]} 17. Re1 {[%emt 0:00:30]} dxc4 {[%emt 0:00:00]} 18. Bxc4 {[%emt 0:06:30]} b5 {[%emt 0:29:00]} 19. axb5 {[%emt 0:10:30]} axb5 {[%emt 0:00:00]} 20. Bxb5 {[%emt 0:00:30]} Qb6 {[%emt 0:00:00]} 21. Bxd7 {[%emt 0:04:30]} Bxf3 {[%emt 0:02:30]} 22. Qxf3 Qxb2 {[%emt 0:00:30]} 23. Bc6 {[%emt 0:04:00]} Qxd4 24. Qc3 {[%emt 0:01:30]} 1/2-1/2

[Event "41st Arco Open 2019"]
[Site "Arco"]
[Date "2019.10.10"]
[Round "7"]
[White "Sarkar, Justin"]
[Black "Petrov, Nikita"]
[Result "0-1"]
[ECO "A80"]
[WhiteElo "2350"]
[BlackElo "2586"]
[Annotator "ChessBase"]
[PlyCount "116"]
[EventDate "2019.10.04"]
[EventType "swiss"]
[EventCountry "ITA"]
[SourceTitle "playchess.com"]
[Source "ChessBase"]
[SourceQuality "1"]
[TimeControl "40/5400+30:1800+30"]

1. d4 {[%emt 0:00:30]} f5 {[%emt 0:00:30]} 2. Bg5 {[%emt 0:00:30]} h6 {[%emt 0:02:30]} 3. Bf4 {[%emt 0:02:30]} Nf6 {[%emt 0:00:30]} 4. e3 {[%emt 0:00:30]} d6 5. Be2 {[%emt 0:01:30]} g6 {[%emt 0:12:00]} 6. h3 {[%emt 0:00:30]} Bg7 {[%emt 0:00:30]} 7. Nf3 {[%emt 0:00:00]} O-O {[%emt 0:02:30]} 8. O-O {[%emt 0:20:00]} Nbd7 {[%emt 0:07:30]} 9. c4 {[%emt 0:00:00]} Ne4 {[%emt 0:03:30]} 10. Bh2 {[%emt 0:00:00]} e5 {[%emt 0:01:30]} 11. Nbd2 {[%emt 0:05:30]} Nxd2 12. Qxd2 {[%emt 0:00:00]} e4 {[%emt 0:08:00]} 13. Ne1 {[%emt 0:00:00]} g5 14. b4 {[%emt 0:06:30]} Nf6 {[%emt 0:00:00]} 15. c5 Be6 {[%emt 0:00:00]} 16. Nc2 {[%emt 0:08:00]} Nd5 {[%emt 0:15:00]} 17. f3 exf3 {[%emt 0:05:30]} 18. Bxf3 {[%emt 0:21:00]} g4 {[%emt 0:01:30]} 19. hxg4 {[%emt 0:00:30]} fxg4 {[%emt 0:00:30]} 20. Be4 {[%emt 0:00:30]} Qh4 21. g3 {[%emt 0:00:30]} Qg5 {[%emt 0:06:00]} 22. Qd3 Rae8 {[%emt 0:00:30]} 23. Rxf8+ {[%emt 0:06:00]} Rxf8 {[%emt 0:05:30]} 24. Bg2 {[%emt 0:02:30]} h5 {[%emt 0:04:30]} 25. e4 {[%emt 0:00:30]} Nxb4 {[%emt 0:02:30]} 26. Nxb4 {[%emt 0:00:30]} dxc5 {[%emt 0:00:30]} 27. Nc2 {[%emt 0:01:30]} cxd4 28. e5 {[%emt 0:05:07]} c5 {[%emt 0:01:00]} 29. Re1 {[%emt 0:05:25]} b6 {[%emt 0:08:02]} 30. a4 {[%emt 0:05:12]} Rf5 {[%emt 0:10:27]} 31. Na3 {[%emt 0:05:45]} Rxe5 {[%emt 0:00:00]} 32. Rxe5 {[%emt 0:00:00]} Qxe5 {[%emt 0:00:00]} 33. Nc4 {[%emt 0:00:32]} Qe1+ {[%emt 0:00:45]} 34. Bf1 {[%emt 0:00:13]} Bd5 {[%emt 0:00:00]} 35. Qe2 {[%emt 0:00:00]} Qxe2 {[%emt 0:00:00]} 36. Bxe2 {[%emt 0:03:39]} Bc6 {[%emt 0:04:00]} 37. Bd1 {[%emt 0:00:21]} Kf7 {[%emt 0:00:00]} 38. Kf2 {[%emt 0:00:00]} Ke6 {[%emt 0:00:00]} 39. Bc2 {[%emt 0:03:11]} Bf6 {[%emt 0:03:44]} 40. Ke2 {[%emt 0:00:33]} Bd8 {[%emt 0:00:00]} 41. Bg1 {[%emt 0:02:02]} a6 {[%emt 0:02:32]} 42. Nd2 {[%emt 0:15:38]} b5 {[%emt 0:04:30]} 43. axb5 {[%emt 0:00:30]} axb5 {[%emt 0:00:30]} 44. Bg6 {[%emt 0:01:57]} h4 45. gxh4 {[%emt 0:00:16]} Bxh4 {[%emt 0:02:00]} 46. Bh5 {[%emt 0:00:00]} Kf5 {[%emt 0:04:53]} 47. Nb3 {[%emt 0:05:53]} Bf3+ {[%emt 0:15:33]} 48. Kd2 {[%emt 0:03:42]} Bg5+ {[%emt 0:00:00]} 49. Ke1 {[%emt 0:00:00]} Be3 {[%emt 0:00:00]} 50. Bxe3 {[%emt 0:00:40]} dxe3 {[%emt 0:00:41]} 51. Nxc5 {[%emt 0:00:01]} b4 {[%emt 0:00:00]} 52. Nd3 {[%emt 0:00:00]} b3 {[%emt 0:00:00]} 53. Kf1 {[%emt 0:04:25]} Be4 {[%emt 0:05:07]} 54. Nb2 {[%emt 0:00:42]} Kf4 {[%emt 0:00:00]} 55. Bf7 {[%emt 0:00:33]} g3 {[%emt 0:01:03]} 56. Bc4 {[%emt 0:00:20]} Ke5 {[%emt 0:01:39]} 57. Nd1 {[%emt 0:01:49]} Kd4 {[%emt 0:00:22]} 58. Nxe3 {[%emt 0:00:00]} b2 {[%emt 0:00:06]} 0-1

[Event "41st Arco Open 2019"]
[Site "Arco"]
[Date "2019.10.10"]
[Round "7"]
[White "Molnar, Bela"]
[Black "Glienke, Manfred Dr."]
[Result "1/2-1/2"]
[ECO "B30"]
[WhiteElo "2305"]
[BlackElo "2235"]
[Annotator "NA"]
[PlyCount "70"]
[EventDate "2019.10.04"]
[EventType "swiss"]
[EventCountry "ITA"]
[SourceTitle "playchess.com"]
[Source "ChessBase"]
[SourceQuality "1"]
[TimeControl "40/5400+30:1800+30"]

1. e4 {[%emt 0:00:30]} c5 {[%emt 0:00:30]} 2. Nf3 {[%emt 0:00:00]} Nc6 {[%emt 0:00:00]} 3. Nc3 {[%emt 0:00:00]} e5 {[%emt 0:00:00]} 4. Bc4 {[%emt 0:00:30]} d6 5. O-O {[%emt 0:00:30]} Be7 {[%emt 0:00:00]} 6. d3 {[%emt 0:00:30]} Nf6 {[%emt 0:00:30]} 7. Ng5 {[%emt 0:00:30]} O-O {[%emt 0:00:30]} 8. f4 {[%emt 0:06:30]} Na5 {[%emt 0:07:30]} 9. f5 {[%emt 0:00:00]} a6 {[%emt 0:03:30]} 10. a4 Bd7 {[%emt 0:01:30]} 11. Rf3 {[%emt 0:15:30]} Nxc4 {[%emt 0:09:30]} 12. dxc4 {[%emt 0:00:30]} Bc6 {[%emt 0:03:30]} 13. a5 {[%emt 0:10:30]} h6 {[%emt 0:08:30]} 14. Rh3 {[%emt 0:00:30]} Re8 {[%emt 0:00:00]} 15. Qe2 {[%emt 0:03:30]} hxg5 {[%emt 0:00:00]} 16. Bxg5 {[%emt 0:00:00]} Kf8 {[%emt 0:01:30]} 17. g4 Ng8 {[%emt 0:00:30]} 18. Be3 {[%emt 0:03:30]} f6 {[%emt 0:15:30]} 19. Rh8 {[%emt 0:06:30]} Qc7 {[%emt 0:01:30]} 20. h4 {[%emt 0:01:30]} Bd8 {[%emt 0:00:00]} 21. g5 {[%emt 0:00:30]} Ke7 {[%emt 0:07:00]} 22. Rh7 {[%emt 0:00:30]} Kd7 {[%emt 0:03:30]} 23. Rxg7+ {[%emt 0:00:30]} Be7 {[%emt 0:00:00]} 24. Qh5 {[%emt 0:13:30]} Rf8 {[%emt 0:01:00]} 25. Qh7 {[%emt 0:00:00]} Rae8 {[%emt 0:01:30]} 26. g6 {[%emt 0:00:00]} b5 {[%emt 0:09:30]} 27. axb6 {[%emt 0:00:00]} Qxb6 28. b3 {[%emt 0:00:00]} Qb7 {[%emt 0:01:00]} 29. Nd5 {[%emt 0:00:00]} Bxd5 30. exd5 {[%emt 0:00:00]} Qb4 {[%emt 0:03:00]} 31. Bf2 {[%emt 0:15:30]} Qd2 {[%emt 0:00:30]} 32. Rxa6 {[%emt 0:00:00]} Qd1+ {[%emt 0:01:30]} 33. Kh2 {[%emt 0:00:00]} Qf3 {[%emt 0:00:30]} 34. Ra7+ {[%emt 0:00:00]} Kc8 {[%emt 0:00:00]} 35. Kg1 {[%emt 0:00:00]} Qd1+ {[%emt 0:01:00]} 1/2-1/2

[Event "41st Arco Open 2019"]
[Site "Arco"]
[Date "2019.10.10"]
[Round "7"]
[White "Fecker, Noah"]
[Black "Schroeder, Wilfried"]
[Result "1-0"]
[ECO "B19"]
[WhiteElo "2240"]
[BlackElo "2195"]
[Annotator "NA"]
[PlyCount "89"]
[EventDate "2019.10.04"]
[EventType "swiss"]
[EventCountry "ITA"]
[SourceTitle "playchess.com"]
[Source "ChessBase"]
[SourceQuality "1"]
[TimeControl "40/5400+30:1800+30"]

1. e4 {[%emt 0:00:30]} c6 {[%emt 0:00:30]} 2. d4 {[%emt 0:00:00]} d5 {[%emt 0:00:00]} 3. Nc3 {[%emt 0:00:00]} dxe4 {[%emt 0:00:00]} 4. Nxe4 {[%emt 0:00:00]} Bf5 {[%emt 0:00:30]} 5. Ng3 {[%emt 0:00:00]} Bg6 {[%emt 0:00:30]} 6. h4 h6 {[%emt 0:00:30]} 7. Nf3 {[%emt 0:01:00]} Nd7 {[%emt 0:00:00]} 8. h5 {[%emt 0:00:30]} Bh7 {[%emt 0:00:00]} 9. Bd3 $11 {[%emt 0:00:30]} Bxd3 {[%emt 0:00:00]} 10. Qxd3 {[%emt 0:00:30]} e6 {[%emt 0:00:00]} 11. Bd2 {[%emt 0:00:30]} Ngf6 {[%emt 0:00:30]} 12. O-O-O {[%emt 0:00:00]} Qc7 {[%emt 0:00:30]} 13. Ne4 {[%emt 0:01:00]} O-O-O {[%emt 0:00:30]} 14. g3 {[%emt 0:00:30]} Nxe4 {[%emt 0:00:00]} 15. Qxe4 Bd6 {[%emt 0:00:00]} 16. Kb1 {[%emt 0:03:00]} c5 {[%emt 0:07:30]} 17. dxc5 {[%emt 0:14:30]} Nxc5 {[%emt 0:03:30]} 18. Qc4 {[%emt 0:04:30]} e5 19. Bc3 {[%emt 0:11:30]} f6 {[%emt 0:28:00]} 20. Bb4 Be7 {[%emt 0:00:30]} 21. Nh4 {[%emt 0:15:00]} a5 {[%emt 0:20:30]} 22. Ba3 Rxd1+ {[%emt 0:02:30]} 23. Rxd1 {[%emt 0:05:00]} Rd8 24. Rxd8+ {[%emt 0:03:30]} Qxd8 {[%emt 0:00:00]} 25. Kc1 {[%emt 0:00:30]} b5 26. Qxb5 {[%emt 0:03:30]} Qd5 {[%emt 0:06:00]} 27. Qe8+ {[%emt 0:06:30]} Bd8 {[%emt 0:00:30]} 28. Bxc5 {[%emt 0:00:00]} Qh1+ {[%emt 0:01:30]} 29. Kd2 {[%emt 0:00:00]} Qd5+ {[%emt 0:00:00]} 30. Ke1 {[%emt 0:01:30]} Qxc5 {[%emt 0:07:00]} 31. c3 {[%emt 0:07:30]} Qd5 {[%emt 0:00:00]} 32. Qa4 {[%emt 0:01:30]} Qd3 {[%emt 0:00:00]} 33. Qg4+ {[%emt 0:06:18]} Kb8 {[%emt 0:01:30]} 34. Qf5 e4 {[%emt 0:04:30]} 35. Qf4+ {[%emt 0:05:57]} Bc7 {[%emt 0:09:05]} 36. Qd2 {[%emt 0:01:20]} Qb1+ {[%emt 0:00:00]} 37. Ke2 {[%emt 0:00:00]} Qxa2 {[%emt 0:00:00]} 38. Nf5 {[%emt 0:00:46]} Qb1 {[%emt 0:00:00]} 39. Nxg7 {[%emt 0:01:48]} Bb6 {[%emt 0:00:43]} 40. Nf5 {[%emt 0:00:00]} Qh1 {[%emt 0:00:00]} 41. Qf4+ {[%emt 0:20:21]} Bc7 {[%emt 0:32:17]} 42. Qg4 {[%emt 0:00:30]} a4 {[%emt 0:00:00]} 43. Ne7 {[%emt 0:01:51]} Ka7 {[%emt 0:00:00]} 44. Qd7 {[%emt 0:02:14]} Qxh5+ {[%emt 0:00:00]} 45. g4 {[%emt 0:00:30]} 1-0

[Event "41st Arco Open 2019"]
[Site "Arco"]
[Date "2019.10.10"]
[Round "7"]
[White "Scheftlein, Richard"]
[Black "Kostov, Kiril"]
[Result "1-0"]
[ECO "D36"]
[WhiteElo "2236"]
[BlackElo "1832"]
[Annotator "NA"]
[PlyCount "101"]
[EventDate "2019.10.04"]
[EventType "swiss"]
[EventCountry "ITA"]
[SourceTitle "playchess.com"]
[Source "ChessBase"]
[SourceQuality "1"]
[TimeControl "40/5400+30:1800+30"]

1. d4 {[%emt 0:00:30]} d5 {[%emt 0:00:30]} 2. c4 {[%emt 0:00:00]} e6 {[%emt 0:00:00]} 3. Nc3 {[%emt 0:00:00]} Nf6 {[%emt 0:01:00]} 4. cxd5 {[%emt 0:00:30]} exd5 {[%emt 0:00:30]} 5. Bg5 {[%emt 0:00:30]} c6 {[%emt 0:00:30]} 6. e3 Be7 {[%emt 0:00:30]} 7. Bd3 {[%emt 0:01:00]} Nbd7 {[%emt 0:00:00]} 8. Nge2 Nh5 {[%emt 0:00:00]} 9. Bxe7 {[%emt 0:01:00]} Qxe7 {[%emt 0:00:30]} 10. Qc2 {[%emt 0:02:30]} g6 {[%emt 0:00:30]} 11. O-O-O {[%emt 0:03:30]} Ndf6 12. h3 {[%emt 0:03:30]} Ng7 {[%emt 0:03:00]} 13. Rhe1 {[%emt 0:00:00]} O-O {[%emt 0:03:30]} 14. Kb1 {[%emt 0:07:00]} Bf5 {[%emt 0:02:30]} 15. Ng3 {[%emt 0:02:30]} Bxd3 {[%emt 0:03:30]} 16. Qxd3 {[%emt 0:00:30]} Rfe8 {[%emt 0:08:30]} 17. f3 {[%emt 0:02:30]} Qc7 {[%emt 0:00:00]} 18. Nf1 {[%emt 0:07:30]} Ne6 {[%emt 0:03:00]} 19. Qd2 {[%emt 0:08:30]} Rad8 {[%emt 0:02:30]} 20. Qf2 {[%emt 0:00:00]} b5 {[%emt 0:04:30]} 21. Ng3 {[%emt 0:10:00]} Kg7 {[%emt 0:04:30]} 22. e4 {[%emt 0:02:30]} dxe4 {[%emt 0:03:30]} 23. Ngxe4 {[%emt 0:02:30]} Nxe4 {[%emt 0:16:30]} 24. fxe4 {[%emt 0:03:30]} Qb6 {[%emt 0:00:00]} 25. Rf1 {[%emt 0:01:30]} Rd7 {[%emt 0:00:00]} 26. Qf6+ {[%emt 0:00:30]} Kg8 {[%emt 0:00:00]} 27. d5 Nd8 {[%emt 0:00:00]} 28. dxc6 {[%emt 0:14:00]} Rxd1+ 29. Rxd1 {[%emt 0:00:30]} Nxc6 {[%emt 0:05:00]} 30. Nd5 {[%emt 0:00:30]} Qc5 31. Rc1 {[%emt 0:00:30]} Qd4 {[%emt 0:05:00]} 32. Qxc6 {[%emt 0:00:00]} Qxe4+ {[%emt 0:00:30]} 33. Ka1 {[%emt 0:00:00]} Kg7 {[%emt 0:00:00]} 34. Qf6+ {[%emt 0:00:30]} Kg8 {[%emt 0:00:00]} 35. Qf3 {[%emt 0:07:30]} Qxf3 {[%emt 0:15:30]} 36. gxf3 {[%emt 0:00:30]} Re5 {[%emt 0:00:00]} 37. Rd1 {[%emt 0:00:30]} Kg7 {[%emt 0:00:00]} 38. f4 {[%emt 0:00:30]} Rh5 {[%emt 0:00:00]} 39. Rd3 {[%emt 0:00:00]} g5 {[%emt 0:00:00]} 40. fxg5 {[%emt 0:02:00]} Rxg5 {[%emt 0:00:00]} 41. Kb1 {[%emt 0:30:30]} a5 {[%emt 0:19:00]} 42. a3 {[%emt 0:01:30]} f5 43. Nc7 {[%emt 0:00:30]} Kh6 {[%emt 0:00:00]} 44. Nxb5 {[%emt 0:00:30]} f4 45. Nd4 {[%emt 0:00:30]} Rd5 {[%emt 0:01:00]} 46. Kc2 {[%emt 0:00:00]} a4 {[%emt 0:00:30]} 47. Nf3 {[%emt 0:01:00]} Rc5+ {[%emt 0:00:30]} 48. Rc3 {[%emt 0:00:30]} Rh5 {[%emt 0:01:30]} 49. Rc6+ {[%emt 0:00:00]} Kg7 {[%emt 0:00:00]} 50. h4 {[%emt 0:00:00]} Rb5 {[%emt 0:00:00]} 51. Rc4 {[%emt 0:00:30]} 1-0